Cogmind - Beta 12 @@@ ROGUE MODE // 2023.11.20 @ 21:09:15 Player: DreamCore Result: Destroyed by P-60 Hacker with Shock Rifle Performance ------------- Evolutions (4) 2000 Regions Visited (13) 2600 Robots Destroyed (107) 535 Value Destroyed (2899) 2899 Prototype IDs (29) 580 Alien Tech Used (0) 0 Bonus (418) 418 TOTAL SCORE: 9032 Bonus ------- High Alert Combat Kills 45 Follower Combat Kills 73 Aligned with FarCom 300 Cogmind --------- Core Integrity 0/850 Matter 22/300 Energy 100/100 System Corruption 20% Temperature Cool (0) Movement Rolling (80) Location -6/Factory Parts ------- > --- POWER (2) -------- (None) > --- PROPULSION (4) --- Wheel > --- UTILITY (7) ------ Signal Interpreter Transmission Jammer Phase Shifter > --- WEAPON (2) ------- (None) > --- INVENTORY (5) ---- Energy Well (350) Advanced ECM Suite Gauss Rifle Assault Cannon Great Maul Peak State ------------ > --- POWER ------------ Light Angular Momentum Engine Light Fission Core > --- PROPULSION ------- Armored Treads Armored Treads Armored Treads Improved Medium Treads > --- UTILITY ---------- Improved Heat Sink Medium Storage Unit Weight Redist. System Signal Interpreter Advanced ECM Suite Force Field > --- WEAPON ----------- Improved Lightning Gun Flak Cannon > --- INVENTORY -------- Micro Nuclear Core Armored Treads Advanced Treads Nuclear Pulse Thruster Energy Well Improved Light Armor Plating Gatling Laser Assault Cannon Mini Grenade Launcher Heavy Mace [Rating: 52] Favorites ----------- Power Light Nuclear Core Engine Cooled Ion Engine Power Core Light Nuclear Core Propulsion Armored Treads Treads Armored Treads Leg Aluminum Leg Wheel Wheel Hover Unit Airjet Flight Unit Flight Unit Utility Signal Interpreter Device Weight Redist. System Storage Small Storage Unit Processor Signal Interpreter Hackware System Shield Protection Improved Light Armor Plating Weapon Flak Cannon Energy Gun Particle Gun Energy Cannon Advanced Beam Cannon Ballistic Gun Assault Rifle Ballistic Cannon Flak Cannon Launcher Mini Grenade Launcher Impact Weapon Heavy Mace Slashing Weapon Ripper Special Melee Weapon Datajack Build | -11 -10 -10 -9 -9 -9 -8 -8 -7 -7 -7 -6 -6 -6 ------- Run | Jun Mat Min Mat Min Exi Min Mat Fac Low Low Fac Was Fac Slots Evolved 8 | . . . 2 . . . 2 2 . . 2 . . Power 1 | . . . . . . . . 1 . . . . . Propulsion 2 | . . . 1 . . . . 1 . . . . . Utility 5 | . . . 1 . . . 2 . . . 2 . . Weapon . | . . . . . . . . . . . . . . Parts Attached 126 | . 3 12 30 5 . 1 18 14 3 . 37 2 1 Power 13 | . . 1 3 . . 1 2 2 . . 4 . . Engine 6 | . . . 2 . . 1 1 1 . . 1 . . Core 7 | . . 1 1 . . . 1 1 . . 3 . . Reactor . | . . . . . . . . . . . . . . Propulsion 53 | . 1 5 14 4 . . 7 8 . . 13 1 . Treads 13 | . . . . . . . . 6 . . 7 . . Leg 19 | . 1 5 10 . . . . 1 . . 2 . . Wheel 1 | . . . . . . . . . . . 1 . . Hover 8 | . . . 4 . . . 2 1 . . 1 . . Flight 12 | . . . . 4 . . 5 . . . 2 1 . Utility 32 | . 1 2 6 1 . . 6 1 . . 14 . 1 Device 11 | . . 1 . 1 . . 2 . . . 6 . 1 Storage 5 | . . . 1 . . . 2 . . . 2 . . Processor 5 | . . 1 4 . . . . . . . . . . Hackware 2 | . . . . . . . 1 1 . . . . . Protection 9 | . 1 . 1 . . . 1 . . . 6 . . Artifact . | . . . . . . . . . . . . . . Weapon 28 | . 1 4 7 . . . 3 3 3 . 6 1 . Energy Gun 7 | . 1 3 . . . . . 2 . . 1 . . Energy Cannon 1 | . . . 1 . . . . . . . . . . Ballistic Gun 1 | . . . . . . . . . . . 1 . . Ballistic Cannon 5 | . . . 1 . . . 1 1 . . 2 . . Launcher 2 | . . . 2 . . . . . . . . . . Special Weapon . | . . . . . . . . . . . . . . Impact Weapon 5 | . . . 1 . . . . . 2 . 2 . . Slashing Weapon 6 | . . 1 1 . . . 2 . 1 . . 1 . Piercing Weapon . | . . . . . . . . . . . . . . Special Melee Weapon 1 | . . . 1 . . . . . . . . . . Unidentified Prototypes 6 | . . . 3 . . . . . . . 2 1 . Parts Lost 46 | . . 1 5 1 . . 9 10 1 . 17 2 . Power 9 | . . . 2 . . . 1 3 . . 3 . . Propulsion 23 | . . . 2 1 . . 6 5 . . 7 2 . Utility 6 | . . . . . . . 1 1 . . 4 . . Weapon 8 | . . 1 1 . . . 1 1 1 . 3 . . Highest Loss Streak 12 | . . 1 3 1 . . 8 7 1 . 12 2 . To Critical Strikes . | . . . . . . . . . . . . . . Average Slot Usage (%) 81 | . 98 99 98 94 88 88 70 73 67 69 75 35 23 Engine 3 | . 14 5 7 . . 2 7 . . . . . . Core 3 | . . 8 3 11 11 8 1 3 . . 2 . . Treads 9 | . . . . . . . . 11 30 30 21 . . Leg 10 | . 28 28 25 . . . . 3 . . . 7 . Hover 2 | . . . 6 17 . . . . . . . . . Flight 3 | . . . . 14 33 33 24 4 . . . . . Device 9 | . . 8 2 5 11 11 15 7 7 7 15 6 9 Storage 9 | . 14 14 11 11 11 11 5 7 7 7 9 . . Processor 8 | . . 3 17 11 11 11 9 7 7 7 6 6 6 Hackware 1 | . . . . . . . . 11 . . . . . Protection 2 | . 13 1 2 5 . . . . . . 4 4 . Energy Gun 4 | . 13 21 3 . . . . 4 . . 1 . . Ballistic Gun 1 | . 14 3 . . . . . . . . . . . Ballistic Cannon 2 | . . . . . . . . 1 7 7 5 . . Impact Weapon 2 | . . . 3 11 11 11 1 . 4 7 4 . . Slashing Weapon 2 | . . 1 6 . . . 5 3 . . . 3 . Naked Turns . | . . . . . . . . . . . . . . Heaviest Build 48 | 14 16 17 31 24 18 18 20 19 15 14 48 14 2 Greatest Support 98 | 20 20 20 30 24 18 18 22 86 26 26 98 10 10 Greatest Overweight (x) 4 | . . . 3 1 . . 1 2 . . 4 1 . Average Overweight (x) . | . . . . . . . . . . . . . . Largest Inventory Capacity 10 | . 8 8 10 10 10 10 10 8 8 8 10 5 5 Average Capacity 8 | . 8 8 9 10 10 10 7 8 8 8 8 5 5 Most Carried 10 | . 8 8 10 10 10 10 10 8 8 8 10 5 5 Average Carried 7 | . 6 7 9 8 10 10 6 7 8 8 6 4 5 Final Capacity 10 | 8 8 8 10 10 10 10 8 8 8 8 5 5 5 Final Carried 10 | 6 8 8 7 10 10 10 8 8 8 8 3 5 5 Class Distribution -------------------- 53% | Scavenger-Mutant 37% | Mutant 5% | Scavenger-Sprinter 3% | Hacker-Mutant Dominant Class ---------------- Mutant | -10/Materials Scavenger-Mutant | -10/Mines Scavenger-Mutant | -9/Materials Mutant | -9/Mines Scavenger-Mutant | -9/Exiles Scavenger-Mutant | -8/Mines Scavenger-Sprinter | -8/Materials Scavenger-Mutant | -7/Factory Mutant | -7/Lower Caves Mutant | -7/Lower Caves Scavenger-Mutant | -6/Factory Mutant | -6/Waste Mutant | -6/Factory Resources | -11 -10 -10 -9 -9 -9 -8 -8 -7 -7 -7 -6 -6 -6 ----------- Run | Jun Mat Min Mat Min Exi Min Mat Fac Low Low Fac Was Fac Matter Collected 1494 | 200 35 172 361 58 . . 196 . 171 12 289 . . Remotely . | . . . . . . . . . . . . . . Salvage Created 3738 | . 101 296 1411 159 . . 439 189 122 152 869 . . Parts 197 | . 8 13 87 7 . . 23 6 10 5 38 . . Haulers Intercepted 5 | . . . 5 . . . . . . . . . . Recyclers Shooed 2 | . . . 2 . . . . . . . . . . Parts Field Recycled . | . . . . . . . . . . . . . . Retrieved Matter . | . . . . . . . . . . . . . . Parts Self-Destructed 14 | . . . . . . . . . 10 4 . . . Prevented 1 | . . . . . . . . . . 1 . . . Kills | -11 -10 -10 -9 -9 -9 -8 -8 -7 -7 -7 -6 -6 -6 ------- Run | Jun Mat Min Mat Min Exi Min Mat Fac Low Low Fac Was Fac Combat Hostiles Destroyed 75 | . 2 9 20 12 . . 8 3 5 3 13 . . Melee 42 | . . . 16 8 . . 5 2 1 2 8 . . Guns 12 | . 2 8 . . . . . 1 1 . . . . Cannons 8 | . . . . . . . 2 . 3 . 3 . . AOE 3 | . . . 2 . . . . . . . 1 . . Classes Destroyed 14 | . 1 2 7 1 . . . 1 1 1 . . . Worker 15 | . . . 9 . . . 1 . . . 5 . . Builder 5 | . . . 3 1 . . . . . . 1 . . Tunneler 1 | . . . 1 . . . . . . . . . . Hauler 5 | . . . 5 . . . . . . . . . . Recycler 6 | . . . 3 . . . 1 . . . 2 . . Operator 1 | . . . 1 . . . . . . . . . . Watcher 4 | . . . 4 . . . . . . . . . . Swarmer 19 | . . 3 5 7 . . . . 4 . . . . Grunt 26 | . 2 4 9 . . . 5 . . 2 4 . . Duelist 1 | . . . . . . . . . . 1 . . . Sentry 16 | . . 2 6 . . . 3 2 . . 3 . . Hunter 2 | . . . . . . . . . 1 . 1 . . Programmer 6 | . . . . . . . . 1 . . 5 . . Assembled 5 | . . . . 5 . . . . . . . . . Best Kill Streak 6 | . 2 3 6 5 . . 4 2 4 3 2 . . Combat Bots Only 6 | . 2 3 6 4 . . 3 2 4 3 2 . . Max Kills in Single Turn 2 | . 1 1 2 1 . . 1 1 1 1 1 . . Gunslinging . | . . . . . . . . . . . . . . Exploded 1 | . . . 1 . . . . . . . 1 . . Melee 1 | . . . 1 1 . . 1 1 1 1 1 . . Uniques/NPCs Destroyed . | . . . . . . . . . . . . . . Combat | -11 -10 -10 -9 -9 -9 -8 -8 -7 -7 -7 -6 -6 -6 -------- Run | Jun Mat Min Mat Min Exi Min Mat Fac Low Low Fac Was Fac Damage Taken 7552 | . 113 576 1138 306 . 67 552 791 420 198 3287 90 14 Core 1617 | . 38 114 165 37 . 22 132 223 . 29 805 38 14 Absorbed by Shields 363 | . . . . . . . 31 65 . . 267 . . Redirected to Shielding 21 | . 4 17 . . . . . . . . . . . Regen/Repaired (Parts) 221 | . . . 185 . . . 36 . . . . . . Core Remaining (%) 64 | 100 . 39 . . . 44 76 . . 64 . . . Volleys Fired 96 | . 6 30 6 . . . 8 1 8 2 35 . . Largest 2 | . 2 2 2 . . . 1 1 2 1 2 . . Hottest 130 | . 60 130 101 . . . 44 80 124 44 104 . . Shots Fired 152 | . 12 60 10 . . . 8 1 13 2 46 . . Gun 91 | . 12 60 . . . . . 1 5 . 13 . . Cannon 57 | . . . 6 . . . 8 . 8 2 33 . . Launcher 4 | . . . 4 . . . . . . . . . . Special . | . . . . . . . . . . . . . . Kinetic 76 | . 6 19 . . . . 8 . 8 2 33 . . Thermal 53 | . . 41 6 . . . . 1 5 . . . . Explosive 4 | . . . 4 . . . . . . . . . . Electromagnetic 19 | . 6 . . . . . . . . . 13 . . Robot Hit Streak 19 | . 7 19 4 . . . 7 10 6 6 9 . . Robot Miss Streak 11 | . 1 2 2 . . . 3 . 11 2 4 . . Penetration Max . | . . . . . . . . . . . . . . Secondary Targets . | . . . . . . . . . . . . . . Shots Hit Robots 284 | . 11 44 81 17 . . 28 17 10 6 70 . . Core Hits 120 | . 5 17 38 3 . . 11 5 11 5 25 . . Critical Kills 6 | . . . 2 1 . . . . 1 . 2 . . Critical Parts Destroyed 13 | . . . 2 5 . . . . . . 6 . . Critical Strikes 31 | . . . 10 6 . . . 4 1 . 10 . . Blast 2 | . . . . . . . . . . . 2 . . Smash 20 | . . . 5 6 . . . . 1 . 8 . . Sever 9 | . . . 5 . . . . 4 . . . . . Melee Attacks 216 | . . . 99 27 . . 26 21 2 4 37 . . Impact 101 | . . . 23 27 . . 8 . 2 4 37 . . Slashing 113 | . . . 74 . . . 18 21 . . . . . Piercing . | . . . . . . . . . . . . . . Sneak Attacks 35 | . . . 21 3 . . 2 . . . 9 . . Combat Hostiles 3 | . . . . 2 . . . . . . 1 . . Follow-up Attacks . | . . . . . . . . . . . . . . Damage Inflicted 10144 | . 140 655 3779 941 . . 986 523 181 281 2658 . . Guns 992 | . 138 635 . . . . . 12 24 . 183 . . Cannons 988 | . . . 41 . . . 181 . 108 39 619 . . Explosions 496 | . . . 324 . . . . . . . 172 . . Melee 7592 | . . . 3414 941 . . 795 505 49 242 1646 . . Ramming 76 | . 2 20 . . . . 10 6 . . 38 . . Kinetic 1176 | . 74 155 . . . . 181 . 108 39 619 . . Thermal 729 | . . 480 41 . . . . 12 24 . 172 . . Explosive 324 | . . . 324 . . . . . . . . . . Electromagnetic 247 | . 64 . . . . . . . . . 183 . . Impact 4014 | . . . 881 941 . . 255 . 49 242 1646 . . Slashing 3578 | . . . 2533 . . . 540 505 . . . . . Piercing . | . . . . . . . . . . . . . . Highest Corruption 20 | . . . . 1 1 1 5 1 1 1 13 20 20 Average Corruption 4 | . . . . 1 1 1 5 1 1 1 4 18 20 Corruption Purged . | . . . . . . . . . . . . . . Corruption Blocked . | . . . . . . . . . . . . . . Effects 80 | . . . . 2 . . 16 1 6 . 35 8 12 Message Errors 13 | . . . . . . . 1 . . . 8 1 3 Matter Fused 19 | . . . . 1 . . 2 . 2 . 7 3 4 Heat Flow Errors 11 | . . . . . . . 5 . 2 . 3 . 1 Energy Discharges 11 | . . . . . . . 4 . . . 4 . 3 Parts Rejected 2 | . . . . . . . . . . . 2 . . Data Loss (minor) 15 | . . . . 1 . . 3 1 1 . 8 . 1 Data Loss (major) 1 | . . . . . . . . . . . 1 . . Misfires 1 | . . . . . . . . . 1 . . . . Alerts 2 | . . . . . . . 1 . . . . 1 . Misdirections 3 | . . . . . . . . . . . . 3 . Weapon Failures 2 | . . . . . . . . . . . 2 . . Overload Shots . | . . . . . . . . . . . . . . Overflow Damage 1985 | . . . 651 391 . . 35 7 . 68 833 . . Projectiles 16 | . . . . . . . 6 . . . 10 . . Explosions . | . . . . . . . . . . . . . . Melee 1969 | . . . 651 391 . . 29 7 . 68 823 . . Knockbacks 30 | . . . 1 3 . . 3 . 4 4 15 . . Impact 9 | . . . 1 3 . . . . . 1 4 . . Kinetic 20 | . . . . . . . 3 . 4 3 10 . . Secondary 1 | . . . . . . . . . . . 1 . . Self-Inflicted Damage 219 | . . . . . . . 4 . . . 215 . . Shots 3 | . . . . . . . . . . . 3 . . Rammed 13 | . . . . . . . 2 2 . . 9 . . Targets Rammed 24 | . 2 7 . . . . 2 2 . . 11 . . Kicked 10 | . 2 7 . . . . . . . . 1 . . Crushed 1 | . . . . . . . . . . . 1 . . Highest Temperature 408 | . 51 408 159 11 . . 249 26 250 2 228 . 214 Average Temperature 87 | . 26 104 60 11 . . 107 19 63 2 64 . 121 Received Heat Transfer 1748 | . 66 219 501 20 . . 256 74 . 135 477 . . Effects 3 | . . 3 . . . . . . . . . . . Shutdowns 1 | . . 1 . . . . . . . . . . . Energy Bleed 1 | . . 1 . . . . . . . . . . . Damage (minor) 1 | . . 1 . . . . . . . . . . . Siege Activations . | . . . . . . . . . . . . . . Robots Corrupted . | . . . . . . . . . . . . . . Combat Hostiles . | . . . . . . . . . . . . . . Parts Fried 28 | . . . 13 5 . . 1 . . 2 7 . . Impact Corruptions 57 | . . . 15 17 . . 1 . . 3 21 . . Robots Melted 1 | . . 1 . . . . . . . . . . . Combat Hostiles 1 | . . 1 . . . . . . . . . . . Parts Melted 2 | . . 2 . . . . . . . . . . . Heat Transferred 1396 | . . 1147 74 . . . . 25 50 . 100 . . Parts Sabotaged . | . . . . . . . . . . . . . . Parts Stolen . | . . . . . . . . . . . . . . Parts Stripped . | . . . . . . . . . . . . . . Power Chain Reactions . | . . . . . . . . . . . . . . Missiles Intercepted . | . . . . . . . . . . . . . . Alert | -11 -10 -10 -9 -9 -9 -8 -8 -7 -7 -7 -6 -6 -6 ------- Run | Jun Mat Min Mat Min Exi Min Mat Fac Low Low Fac Was Fac Peak Influence 612 | . 58 207 612 428 . . 237 75 . . 177 72 36 Initial 238 | . . 22 . 238 . . . 60 . . 44 57 36 Average 116 | . 14 46 288 349 . . 90 32 . . 60 58 36 Maximum Alert Level 2 | . . 1 2 2 . . 1 . . . . . . Low Security (%) 80 | . 100 93 38 . . 100 95 100 . . 100 100 100 Level 1 10 | . . 6 29 48 . . 4 . . . . . . Level 2 9 | . . . 31 51 . . . . . . . . . Level 3 . | . . . . . . . . . . . . . . Level 4 . | . . . . . . . . . . . . . . Level 5 . | . . . . . . . . . . . . . . High Security . | . . . . . . . . . . . . . . Max Security . | . . . . . . . . . . . . . . Squads Dispatched 13 | . . . 2 . . . 3 1 . . 5 . 2 Investigation 3 | . . . . . . . 2 . . . . . 1 Extermination 7 | . . . . . . . . 1 . . 5 . 1 Reinforcement 3 | . . . 2 . . . 1 . . . . . . Assault . | . . . . . . . . . . . . . . Garrison . | . . . . . . . . . . . . . . Intercept . | . . . . . . . . . . . . . . Searches Triggered . | . . . . . . . . . . . . . . Construction Impeded . | . . . . . . . . . . . . . . Haulers Reinforced . | . . . . . . . . . . . . . . Active Scanning Responses . | . . . . . . . . . . . . . . Cargo Convoy Interrupts . | . . . . . . . . . . . . . . Stealth | -11 -10 -10 -9 -9 -9 -8 -8 -7 -7 -7 -6 -6 -6 --------- Run | Jun Mat Min Mat Min Exi Min Mat Fac Low Low Fac Was Fac Distress Signals 8 | . . . 4 . . . 3 . . . 1 . . Communications Jammed . | . . . . . . . . . . . . . . Distress Signals . | . . . . . . . . . . . . . . Times Spotted 141 | . 3 9 48 15 . 4 22 6 5 3 20 5 1 Peak Tracking Total 18 | . 2 3 4 18 . 4 6 5 4 3 3 5 1 Tactical Retreats 21 | . . 1 8 4 . . 4 . . . 4 . . Traps | -11 -10 -10 -9 -9 -9 -8 -8 -7 -7 -7 -6 -6 -6 ------- Run | Jun Mat Min Mat Min Exi Min Mat Fac Low Low Fac Was Fac Traps Triggered 1 | . . . . . . . . . . . 1 . . Indirectly . | . . . . . . . . . . . . . . Trap Hack Attempts . | . . . . . . . . . . . . . . Triggered . | . . . . . . . . . . . . . . Disarmed . | . . . . . . . . . . . . . . Reprogrammed . | . . . . . . . . . . . . . . Reused . | . . . . . . . . . . . . . . Traps Extracted . | . . . . . . . . . . . . . . Installed . | . . . . . . . . . . . . . . Triggered . | . . . . . . . . . . . . . . Machines | -11 -10 -10 -9 -9 -9 -8 -8 -7 -7 -7 -6 -6 -6 ---------- Run | Jun Mat Min Mat Min Exi Min Mat Fac Low Low Fac Was Fac Machines Disabled 6 | . . . . . . . . . . . 6 . . Max in Single Turn 6 | . . . . . . . . . . . 6 . . Machines Repaired . | . . . . . . . . . . . . . . Machines Sabotaged . | . . . . . . . . . . . . . . Overloaded Fab Kills . | . . . . . . . . . . . . . . Hacking | -11 -10 -10 -9 -9 -9 -8 -8 -7 -7 -7 -6 -6 -6 --------- Run | Jun Mat Min Mat Min Exi Min Mat Fac Low Low Fac Was Fac Machines Accessed 22 | . 2 . 6 1 1 . 5 2 1 . 1 . 3 Terminals 14 | . 2 . 4 1 . . 3 1 . . 1 . 2 Fabricators . | . . . . . . . . . . . . . . Repair Stations 2 | . . . 1 . . . 1 . . . . . . Recycling Units 3 | . . . 1 . . . . 1 . . . . 1 Scanalyzers 1 | . . . . . . . 1 . . . . . . Garrison Access . | . . . . . . . . . . . . . . Total Hacks 60 | . 5 . 19 4 1 . 16 4 1 . 3 . 7 Successful 33 | . 2 . 14 1 1 . 8 3 1 . 1 . 2 Failed 27 | . 3 . 5 3 . . 8 1 . . 2 . 5 Catastrophic 9 | . 1 . 2 1 . . 2 . . . 1 . 2 Database Lockouts . | . . . . . . . . . . . . . . Manual 21 | . 4 . 3 2 1 . 3 1 . . 2 . 5 Terminals 32 | . 5 . 9 4 . . 5 1 . . 3 . 5 Fabricators . | . . . . . . . . . . . . . . Repair Stations 17 | . . . 8 . . . 9 . . . . . . Recycling Units 7 | . . . 2 . . . . 3 . . . . 2 Scanalyzers 2 | . . . . . . . 2 . . . . . . Garrison Access . | . . . . . . . . . . . . . . Terminal Hacks 14 | . 2 . 6 1 1 . 1 1 1 . 1 . . Record 1 | . . . . . . . . . . . 1 . . Open Door 1 | . . . . . . . . . 1 . . . . Branch Access Points 4 | . 1 . 1 . . . 1 1 . . . . . Alert Level 1 | . . . 1 . . . . . . . . . . Locate Traps 1 | . . . 1 . . . . . . . . . . Reinforcement Status 1 | . . . 1 . . . . . . . . . . Hauler Manifests 1 | . 1 . . . . . . . . . . . . Registered Components 1 | . . . 1 . . . . . . . . . . Zone Layout 2 | . . . 1 1 . . . . . . . . . EX-Prototype ID Bank 1 | . . . . . 1 . . . . . . . . Fabricator Hacks . | . . . . . . . . . . . . . . Repair Station Hacks 11 | . . . 6 . . . 5 . . . . . . Scan Component 6 | . . . 3 . . . 3 . . . . . . Repair 5 | . . . 3 . . . 2 . . . . . . Recycling Unit Hacks 6 | . . . 2 . . . . 2 . . . . 2 Report Inventory 3 | . . . 1 . . . . 1 . . . . 1 Retrieve Components 3 | . . . 1 . . . . 1 . . . . 1 Scanalyzer 2 | . . . . . . . 2 . . . . . . Insert Component 1 | . . . . . . . 1 . . . . . . Analyze 1 | . . . . . . . 1 . . . . . . Garrison Access Hacks . | . . . . . . . . . . . . . . Unauthorized Hacks . | . . . . . . . . . . . . . . Terminals . | . . . . . . . . . . . . . . Fabricators . | . . . . . . . . . . . . . . Repair Stations . | . . . . . . . . . . . . . . Recycling Units . | . . . . . . . . . . . . . . Scanalyzers . | . . . . . . . . . . . . . . Garrison Access . | . . . . . . . . . . . . . . Data Cores Recovered . | . . . . . . . . . . . . . . Used . | . . . . . . . . . . . . . . Hacking Detections 14 | . 2 . 3 1 . . 5 . . . 1 . 2 Full Trace Events 3 | . . . . . . . 2 . . . . . 1 Feedback Events . | . . . . . . . . . . . . . . Feedback Blocked . | . . . . . . . . . . . . . . Robot Schematics Acquired . | . . . . . . . . . . . . . . Robots Built . | . . . . . . . . . . . . . . Authchips . | . . . . . . . . . . . . . . Time . | . . . . . . . . . . . . . . Total Robot Build Rating . | . . . . . . . . . . . . . . Part Schematics Acquired 1 | . . . . . . . 1 . . . . . . Parts Built . | . . . . . . . . . . . . . . Authchips . | . . . . . . . . . . . . . . Time . | . . . . . . . . . . . . . . Total Part Build Rating . | . . . . . . . . . . . . . . Parts Repaired 5 | . . . 3 . . . 2 . . . . . . Time 136 | . . . 78 . . . 58 . . . . . . Parts Recycled . | . . . . . . . . . . . . . . Recycled Matter . | . . . . . . . . . . . . . . Retrieved Matter . | . . . . . . . . . . . . . . Retrieved Components 15 | . . . 9 . . . . 3 . . . . 3 Parts Scanalyzed 1 | . . . . . . . 1 . . . . . . Part Schematics Acquired 1 | . . . . . . . 1 . . . . . . Parts Damaged . | . . . . . . . . . . . . . . Bothacking | -11 -10 -10 -9 -9 -9 -8 -8 -7 -7 -7 -6 -6 -6 ------------ Run | Jun Mat Min Mat Min Exi Min Mat Fac Low Low Fac Was Fac Used RIF Installer . | . . . . . . . . . . . . . . Robots Hacked 2 | . . . 2 . . . . . . . . . . Non-combat 1 | . . . 1 . . . . . . . . . . Combat 1 | . . . 1 . . . . . . . . . . Robot Hacks Applied 2 | . . . 2 . . . . . . . . . . parse_system 2 | . . . 2 . . . . . . . . . . Relay Couplers Released . | . . . . . . . . . . . . . . Fabnet Peak Effective % . | . . . . . . . . . . . . . . Robots Rewired . | . . . . . . . . . . . . . . Allies Hacked . | . . . . . . . . . . . . . . Hacks Repelled . | . . . . . . . . . . . . . . Allies | -11 -10 -10 -9 -9 -9 -8 -8 -7 -7 -7 -6 -6 -6 -------- Run | Jun Mat Min Mat Min Exi Min Mat Fac Low Low Fac Was Fac Total Allies 3 | . . 3 . . . . . . . . . . . Largest Group 3 | . . 3 3 . . . . . . . . . . Highest-Rated Group 40 | . . 40 40 . . . . . . . . . . Highest-Rated Ally 16 | . . 16 16 . . . . . . . . . . Total Orders . | . . . . . . . . . . . . . . Ally Attacks 23 | . . . 23 . . . . . . . . . . Total Damage 278 | . . . 278 . . . . . . . . . . Kills 3 | . . . 3 . . . . . . . . . . Allies Corrupted . | . . . . . . . . . . . . . . Allies Melted . | . . . . . . . . . . . . . . Intel | -11 -10 -10 -9 -9 -9 -8 -8 -7 -7 -7 -6 -6 -6 ------- Run | Jun Mat Min Mat Min Exi Min Mat Fac Low Low Fac Was Fac Robot Analysis Total . | . . . . . . . . . . . . . . Derelict Logs Recovered 4 | . . 2 . 2 . . . . . . . . . Drone Launches . | . . . . . . . . . . . . . . Drone Recoveries . | . . . . . . . . . . . . . . Exploration | -11 -10 -10 -9 -9 -9 -8 -8 -7 -7 -7 -6 -6 -6 ------------- Run | Jun Mat Min Mat Min Exi Min Mat Fac Low Low Fac Was Fac Turns Passed 10207 | . 275 1523 1810 495 124 35 916 1123 922 49 2535 77 323 Spaces Moved 7450 | 1 198 1129 1155 837 363 99 1283 588 442 21 981 89 264 Core 44 | . . . . . . . . 6 . . 38 . . Treads 1685 | . . . . . . . . 446 442 21 776 . . Legs 2248 | 1 198 1129 851 . . . . . . . 69 . . Wheels 358 | . . . . . . . . . . . 5 89 264 Hover 808 | . . . 304 356 . . 2 136 . . 10 . . Flight 2307 | . . . . 481 363 99 1281 . . . 83 . . Fastest Speed 32 | 120 120 120 52 32 34 34 32 50 170 170 40 80 80 Average Speed 99 | 120 120 120 114 41 34 34 33 143 170 170 165 80 80 Slowest Speed 250 | 120 120 120 240 117 34 34 120 170 170 170 250 95 80 Overloaded Moves . | . . . . . . . . . . . . . . Propulsion Burnouts . | . . . . . . . . . . . . . . Robots Hopped 15 | . . . . 4 . . 9 . . . 2 . . Cave-ins Triggered . | . . . . . . . . . . . . . . Exploration Rate (%) 46 | 1 26 99 77 98 77 41 55 13 67 6 20 75 2 Regions Visited 13 Branch Regions 6 Pre-discovered Areas 1 | . . . . 1 . . . . . . . . . Known Exits Taken 10 | . 1 1 1 1 1 1 1 1 1 1 . . . Unknown Exits Taken 1 | 1 . . . . . . . . . . . . . Scrap Searched 5 | . . 2 . 1 . 1 . . 1 . . . . Spaces Dug . | . . . . . . . . . . . . . . Terrain Destroyed 89 | . . . 29 . . . 1 . . . 59 . . Melee . | . . . . . . . . . . . . . . Projectile 2 | . . . . . . . 1 . . . 1 . . AOE 87 | . . . 29 . . . . . . . 58 . . Terrain Rammed . | . . . . . . . . . . . . . . Walls Destroyed . | . . . . . . . . . . . . . . Machines Disabled . | . . . . . . . . . . . . . . Actions | -11 -10 -10 -9 -9 -9 -8 -8 -7 -7 -7 -6 -6 -6 --------- Run | Jun Mat Min Mat Min Exi Min Mat Fac Low Low Fac Was Fac Total 9728 | . 222 1239 1482 924 362 100 1712 832 597 26 1762 95 375 Wait 1724 | . 10 45 153 50 . . 376 194 139 . 647 . 110 Move 7409 | . 197 1128 1154 829 362 98 1264 587 441 20 977 88 264 Hop 14 | . . . . 3 . . 9 . . . 2 . . Pick Up 41 | . 2 5 13 6 . . 4 7 1 . 3 . . Fast Attach 54 | . 2 2 13 . . . 7 8 3 . 16 2 1 Attach 38 | . . 1 6 2 . . 9 6 . . 14 . . Detach 20 | . . 1 3 1 . . 3 3 . . 7 2 . Swap 35 | . 1 9 12 3 . 1 2 . . . 7 . . Drop 57 | . 2 11 23 3 . 1 2 3 3 . 6 3 . Fire 96 | . 6 30 6 . . . 8 1 8 2 35 . . Melee 216 | . . . 99 27 . . 26 21 2 4 37 . . Ram 4 | . . . . . . . 2 1 . . 1 . . Kick 10 | . 2 7 . . . . . . . . 1 . . Crush 10 | . . . . . . . . 1 . . 9 . . Escape Stasis . | . . . . . . . . . . . . . . Rewire . | . . . . . . . . . . . . . . Trap . | . . . . . . . . . . . . . . Miscellaneous . | . . . . . . . . . . . . . . Route ------- -11/Junkyard -10/Materials (discovered 2 exits: *Min x2) -10/Mines (discovered 2 exits: *Mat x2) -9/Materials (discovered 5 exits: *Mat x2 / *Min / *Sto x2) -9/Mines (discovered 4 exits: *Mat x2 / *Exi / *Zio) -9/Exiles -8/Mines -8/Materials (discovered 2 exits: *Fac x2) -7/Factory (discovered 3 exits: *Fac / *Low x2) -7/Lower Caves -7/Lower Caves -6/Factory -6/Waste -6/Factory History --------- Turn | Location | Event 1 | -11/Junkyard | Discovered new exit (range 0) 1 | -11/Junkyard | Entered Materials 29 | -10/Materials | Identified exit to Mines 276 | -10/Materials | Entered Mines 300 | -10/Mines | Build established: Mutant 378 | -10/Mines | Discovered new exit (range 10) 392 | -10/Mines | Identified exit to Materials 810 | -10/Mines | Core integrity fell below 50% 1006 | -10/Mines | Discovered exit to Materials (range 7) 1043 | -10/Mines | Received a Rocket Launcher from a helpful Derelict 1104 | -10/Mines | Build established: Scavenger-Mutant 1166 | -10/Mines | Learned 2 Materials zone layouts 1429 | -10/Mines | Assisted by bots powering up and referring to "LRC-V3" 1621 | -10/Mines | A weapon hastily lodged in a ceiling crevice suddenly fell to the ground 1799 | -10/Mines | Entered Materials 1799 | -9/Materials | Accompanied by 3 allies 1799 | -9/Materials | Evolved 2 slots: Propulsion x1, Utility x1 1952 | -9/Materials | Repaired Aluminum Leg 1980 | -9/Materials | Repaired Aluminum Leg 2007 | -9/Materials | Repaired Aluminum Leg 2039 | -9/Materials | Discovered new exit (range 16) 2601 | -9/Materials | Discovered new exit (range 15) 2695 | -9/Materials | Discovered new exit (range 6) 2700 | -9/Materials | Identified exit to Materials 2705 | -9/Materials | Identified exit to Storage 3210 | -9/Materials | Discovered exit to Materials (range 7) 3486 | -9/Materials | Build established: Mutant 3565 | -9/Materials | Identified exit to Mines 3577 | -9/Materials | Lost 3 parts (1p1n1w) 3609 | -9/Materials | Entered Mines 3615 | -9/Mines | Met a Derelict bent on vengeance 3648 | -9/Mines | Discovered exit to Materials (range 9) 3731 | -9/Mines | Core integrity fell below 50% 3800 | -9/Mines | Assembled infested the area 3993 | -9/Mines | Learned location of 1 exit from Lower Caves 4020 | -9/Mines | A Derelict revealed a hidden shortcut to a safe place 4022 | -9/Mines | Identified exit to Zion 4055 | -9/Mines | Discovered exit to Materials (range 7) 4095 | -9/Mines | Learned location of Storage (-9) 4102 | -9/Mines | Deemed a non-threat by the Exiles lab entrance 4102 | -9/Mines | Discovered new exit (range 5) 4103 | -9/Mines | Identified exit to Exiles 4104 | -9/Mines | Entered Exiles 4113 | -9/Exiles | Met 8R-AWN 4118 | -9/Exiles | Met EX-HEX 4130 | -9/Exiles | Met EX-BIN 4134 | -9/Exiles | Aligned with FarCom system 4135 | -9/Exiles | Given EX-Vault access code 4145 | -9/Exiles | Opened EX-Vault 4154 | -9/Exiles | Warned to stay clear of 0b10 Research branches 4166 | -9/Exiles | Met EX-DEC 4167 | -9/Exiles | Build established: Scavenger-Mutant 4180 | -9/Exiles | Visited The Gauntlet 4224 | -9/Exiles | Discovered new exit (range 12) 4227 | -9/Exiles | Identified exit to Mines 4228 | -9/Exiles | Entered Mines 4262 | -8/Mines | Discovered exit to Materials (range 6) 4263 | -8/Mines | Entered Materials 4263 | -8/Materials | Evolved 2 slots: Utility x2 4321 | -8/Materials | Discovered new exit (range 15) 4327 | -8/Materials | Identified exit to Factory 4444 | -8/Materials | Lost 8 parts (1p5n1u1w) 4813 | -8/Materials | Build established: Scavenger-Sprinter 4964 | -8/Materials | Repaired Flight Unit 4997 | -8/Materials | Repaired Weight Redist. System 5142 | -8/Materials | Discovered exit to Factory (range 14) 5179 | -8/Materials | Entered Factory 5179 | -7/Factory | Evolved 2 slots: Power x1, Propulsion x1 5301 | -7/Factory | Lost 3 parts (1p1n1u) 5431 | -7/Factory | Build established: Scavenger-Mutant 5696 | -7/Factory | Identified exit to Lower Caves 5833 | -7/Factory | Lost 7 parts (2p4n1w) 5978 | -7/Factory | Discovered new exit (range 6) 5985 | -7/Factory | Identified exit to Factory 6077 | -7/Factory | Build established: Hacker-Mutant 6302 | -7/Factory | Entered Lower Caves 6303 | -7/Lower Caves | Identified exit to Lower Caves 6491 | -7/Lower Caves | Build established: Mutant 7224 | -7/Lower Caves | Entered another Lower Caves area 7255 | -7/Lower Caves | Discovered exit to Factory (range 5) 7268 | -7/Lower Caves | Encountered a Warlord checkpoint 7273 | -7/Lower Caves | Entered Factory 7273 | -6/Factory | Evolved 2 slots: Utility x2 8040 | -6/Factory | Build established: Scavenger-Mutant 8210 | -6/Factory | Discovered new exit (range 7) 8337 | -6/Factory | Identified exit to Factory 9442 | -6/Factory | Lost 12 parts (2p5n3u2w) 9452 | -6/Factory | System corruption reached 10% 9497 | -6/Factory | Core integrity fell below 50% 9583 | -6/Factory | Core integrity fell below 20% 9698 | -6/Factory | Build established: Mutant 9808 | -6/Factory | Sucked down chute 9808 | -6/Factory | Entered Waste 9823 | -6/Waste | EMP discharged 9825 | -6/Waste | Spotted C-40 Crusher 9834 | -6/Waste | Spotted C-40 Crusher 9839 | -6/Waste | Crushed by Compactor (1 part destroyed, 1 dropped) 9847 | -6/Waste | Spotted C-40 Crusher 9847 | -6/Waste | Spotted C-40 Crusher 9857 | -6/Waste | Spotted C-40 Crusher 9860 | -6/Waste | Spotted C-40 Crusher 9866 | -6/Waste | Crushed by Compactor (1 part destroyed, 1 dropped) 9878 | -6/Waste | Discovered new exit (range 10) 9884 | -6/Waste | Identified exit to Factory 9885 | -6/Waste | Entered Factory 10208 | -6/Factory | Destroyed by P-60 Hacker with Shock Rifle Last Messages --------------- Phase Shifter (48%) Prototype Energy Cannon (41%) Corrupted Authchip [Processor] (100%) >>Retrieve(Components) Retrieving 3 components... Corrupted Authchip [Processor] Phase Shifter Prototype Energy Cannon 10024_ Acquired Phase Shifter. 10034_ System corrupted: Matter fused (-6). 10061_ System corrupted: Energy discharge (-9). 10067_ Connecting with Terminal... 10067_ ALERT: Suspicious activity at Terminal F002. Dispatching Investigation squad. 10078_ 72OCDEW5PAOR N/J=OKG#YDZH 10096_ H%RYGXWJI6TVBFMWBXO6W&4#BO/ZIX4D 10111_